bitfinex-derivatives/quotes_BNBF0:USTF0_20250326
["timestamp","ask_amount","ask_price","bid_price","bid_amount"]
[1742964280295,0.27630451,630.2,629.35,1.18608911]
[1742964280997,0.27630451,630.2,629.17,0.27630451]
[1742964280998,0.27630451,630.2,629.37,1.18608911]
[1742964283196,1.631,630.22,629.37,1.18608911]
[1742964283801,1.631,630.22,629.38,1.18608911]
[1742964284397,0.27630122,630.21,629.38,1.18608911]
[1742964286103,1.631,630.22,629.4,1.18608911]
[1742964287398,0.27629902,630.21,629.4,1.18608911]
[1742964288504,0.27629902,630.21,629.49,1.18608911]
[1742964289205,1.631,630.22,629.49,1.18608911]
[1742964290303,0.27628915,630.21,629.49,1.18608911]
[1742964291104,0.27628915,630.21,629.39,1.18608911]
[1742964292206,1.631,630.22,629.39,1.18608911]
[1742964293401,0.27630012,630.21,629.39,1.18608911]
[1742964293601,0.27630012,630.21,629.4,1.18608911]
[1742964295199,1.631,630.22,629.39,1.18608911]
[1742964296204,1.258,630.21,629.39,1.18608911]
[1742964296404,1.53430012,630.21,629.39,1.18608911]
[1742964296807,0.471,630.2,629.39,1.18608911]
[1742964297404,0.471,630.2,629.4,1.18608911]
[1742964298407,0.471,630.2,629.41,0.26773032]
[1742964298601,0.471,630.2,629.4,1.18608911]
[1742964299406,0.27630012,630.19,629.4,1.18608911]
[1742964299606,0.27630012,630.19,629.41,0.26773374]
[1742964300008,0.27630012,630.19,629.55,1.18608911]
[1742964300410,1.37230012,630.19,629.55,1.18608911]
[1742964301009,1.096,630.19,629.55,1.18608911]
[1742964302009,1.096,630.19,629.57,1.18608911]
[1742964302210,0.27628586,630.18,629.57,1.18608911]
[1742964304214,1.096,630.19,629.57,1.18608911]
[1742964304409,1.096,630.19,629.55,1.18608911]
[1742964305209,0.27628586,630.18,629.55,1.18608911]
[1742964306710,0.27628586,630.18,629.23,1.18608911]
[1742964306711,0.27628586,630.18,629.56,1.18608911]
[1742964307415,1.096,630.19,629.56,1.18608911]
[1742964308014,0.27629354,630.18,629.56,1.18608911]
[1742964308916,0.27629354,630.18,629.53,1.18608911]
[1742964310319,1.096,630.19,629.53,1.18608911]
[1742964310520,0.27629683,630.17,629.53,1.18608911]
[1742964312023,0.27629683,630.17,629.46,1.18608911]
[1742964312723,0.471,630.16,629.46,1.18608911]
[1742964313621,0.471,630.16,629.45,1.18608911]
[1742964314423,0.2763056,630.15,629.45,1.18608911]
[1742964316126,0.471,630.16,629.45,1.18608911]
[1742964317429,0.27630341,630.15,629.45,1.18608911]
[1742964317828,1.027,630.14,629.45,1.18608911]
[1742964320232,0.27631109,630.13,629.45,1.18608911]
[1742964320830,0.27631109,630.13,629.54,1.18608911]
[1742964322033,1.027,630.14,629.54,1.18608911]
[1742964322533,0.27630122,630.12,629.54,1.18608911]
[1742964323032,0.27630122,630.12,629.53,1.18608911]
[1742964325030,1.027,630.14,629.53,1.18608911]
[1742964326337,1.67329573,630.13,629.53,1.18608911]
[1742964328336,1.67329573,630.13,629.55,1.18608911]
[1742964331036,1.67329573,630.13,629.53,1.18608911]
[1742964331037,1.397,630.13,629.53,1.18608911]
[1742964332339,0.27629683,630.12,629.53,1.18608911]
[1742964333338,0.27629683,630.12,629.16,0.27629683]
[1742964333339,0.27629683,630.12,629.52,1.18608911]
[1742964333533,1.377,630.11,629.52,1.18608911]
[1742964335242,0.27630012,630.1,629.52,1.18608911]
[1742964335649,0.27630012,630.1,629.49,1.18608911]
[1742964337046,1.377,630.11,629.49,1.18608911]
[1742964337746,1.377,630.11,629.5,1.18608911]
[1742964338340,0.27630231,630.1,629.5,1.18608911]
[1742964339247,0.27630231,630.1,629.52,1.18608911]
[1742964340148,1.377,630.11,629.52,1.18608911]
[1742964341351,0.2763067,630.1,629.54,1.18608911]
[1742964341549,0.7473067,630.1,629.54,1.18608911]
[1742964343151,0.471,630.1,629.54,1.18608911]
[1742964343652,0.27630451,630.09,629.54,1.18608911]
[1742964344254,0.27630451,630.09,629.55,1.18608911]
[1742964345655,0.97,630.08,629.55,1.18608911]
[1742964346757,0.97,630.08,629.54,1.18608911]
[1742964346955,0.2763067,630.07,629.54,1.18608911]
[1742964349163,0.97,630.08,629.54,1.18608911]
[1742964349463,0.97,630.08,629.23,1.18608911]
[1742964350565,0.27634181,630.07,629.23,1.18608911]
[1742964352065,0.97,630.08,629.23,1.18608911]
[1742964353366,0.27634181,630.07,629.23,1.18608911]
[1742964354168,0.27634181,630.07,629.22,1.18608911]
[1742964355063,0.97,630.08,629.22,1.18608911]
[1742964355563,0.2763429,630.07,629.22,1.18608911]
[1742964355970,1.7363429,630.07,629.22,1.18608911]
[1742964357169,2.2073429,630.07,629.22,1.18608911]
[1742964358169,1.931,630.07,629.22,1.18608911]
[1742964359170,1.931,630.07,629.41,1.18608911]
[1742964359568,0.27634839,630.06,629.41,1.18608911]
[1742964361172,1.931,630.07,629.41,1.18608911]
[1742964362373,0.27632754,630.06,629.41,1.18608911]
[1742964368378,1.465,630.05,629.41,1.18608911]
[1742964370173,1.465,630.05,629.42,1.18608911]
[1742964370779,0.27633522,630.04,629.42,1.18608911]
[1742964373674,0.27633522,630.04,629.46,1.18608911]
[1742964373878,0.471,630.03,629.46,1.18608911]
[1742964376580,0.471,630.03,629.25,1.18608911]
[1742964376581,0.471,630.03,629.51,1.18608911]
[1742964377680,0.27632535,630.02,629.51,1.18608911]
[1742964378883,0.27632535,630.02,629.39,1.18608911]
[1742964379384,0.471,630.03,629.39,1.18608911]
[1742964380585,0.2763451,630.02,629.39,1.18608911]
[1742964382187,0.2763451,630.02,629.38,1.18608911]
[1742964383089,1.201,630.01,629.38,1.18608911]
[1742964383788,1.201,630.01,629.39,1.18608911]
[1742964386587,0.27634949,630.0,629.39,1.18608911]
[1742964387397,1.442,629.99,629.39,1.18608911]
[1742964389397,1.442,629.99,629.48,1.18608911]
[1742964389595,0.27636046,629.98,629.48,1.18608911]
[1742964390395,0.471,629.97,629.48,1.18608911]
[1742964391600,0.471,629.97,629.38,1.18608911]
[1742964391993,0.27635058,629.96,629.38,1.18608911]
[1742964393899,0.27635058,629.96,629.39,1.18608911]
[1742964394301,0.471,629.97,629.39,1.18608911]
[1742964394995,0.27636046,629.96,629.39,1.18608911]
[1742964395999,0.27636046,629.96,629.4,1.18608911]
[1742964397399,0.471,629.97,629.4,1.18608911]
[1742964400202,0.471,629.97,629.47,1.18608911]
[1742964402501,0.2763451,629.98,629.47,1.18608911]
[1742964402698,0.2763451,629.98,629.46,1.18608911]
[1742964402905,1.148,629.97,629.46,1.18608911]
[1742964404612,1.148,629.97,629.17,1.18608911]
[1742964404613,1.148,629.97,629.37,1.18608911]
[1742964405814,0.471,629.96,629.37,1.18608911]
[1742964406210,1.077,629.95,629.37,1.18608911]
[1742964406912,1.077,629.95,629.32,1.18608911]
[1742964409511,1.077,629.95,629.33,1.18608911]
[1742964410718,1.35336265,629.95,629.33,1.18608911]
[1742964412414,1.077,629.95,629.33,1.18608911]
[1742964412617,1.35336265,629.95,629.33,1.18608911]
[1742964413017,1.35336265,629.95,629.32,1.18608911]
[1742964414915,1.35336265,629.95,629.23,1.18608911]
[1742964415324,1.077,629.95,629.23,1.18608911]
[1742964415719,0.27638241,629.94,629.23,1.18608911]
[1742964417117,0.27638241,629.94,629.26,1.18608911]
[1742964418325,1.077,629.95,629.26,1.18608911]
[1742964419328,1.077,629.95,629.25,1.18608911]
[1742964419729,0.27637912,629.94,629.25,1.18608911]
[1742964420423,0.74737912,629.94,629.25,1.18608911]
[1742964421229,0.74737912,629.94,629.23,1.18608911]
[1742964421425,0.471,629.94,629.23,1.18608911]
[1742964422633,0.27638241,629.93,629.23,1.18608911]
[1742964423932,0.27638241,629.93,629.34,1.18608911]
[1742964424334,0.471,629.94,629.34,1.18608911]
[1742964425633,0.27636814,629.93,629.34,1.18608911]
[1742964426730,0.27636814,629.93,629.35,1.18608911]
[1742964427138,1.027,629.92,629.35,1.18608911]
[1742964428636,0.27637253,629.91,629.35,1.18608911]
[1742964429636,0.27637253,629.91,629.34,1.18608911]
[1742964429836,1.23,629.9,629.34,1.18608911]
[1742964431238,1.23,629.9,629.38,1.18608911]
[1742964433032,1.23,629.9,629.04,0.97964833]
[1742964433033,1.23,629.9,629.43,1.18608911]
[1742964435841,1.23,629.9,629.28,1.18608911]
[1742964437934,0.471,629.89,629.28,1.18608911]
[1742964438540,0.471,629.89,629.29,1.18608911]
[1742964442043,0.471,629.89,629.22,1.18608911]
[1742964443644,0.471,629.89,629.29,1.18608911]
[1742964445845,0.471,629.89,629.3,0.26782412]
[1742964446741,0.471,629.89,629.3,1.45391323]
[1742964447046,0.471,629.89,629.3,1.18608911]
[1742964447840,1.458,629.88,629.3,1.18608911]
[1742964448845,1.458,629.88,629.39,1.18608911]
[1742964451349,1.458,629.88,629.38,1.18608911]
[1742964452046,0.26864745,629.87,629.38,1.18608911]
[1742964454249,0.26864745,629.87,628.97,1.18608911]
[1742964456349,0.26864745,629.87,628.93,0.27639558]
[1742964457352,1.458,629.88,628.9,1.18608911]
[1742964457749,0.27645596,629.86,628.9,1.18608911]
[1742964459452,0.27645596,629.86,628.98,1.18608911]
[1742964459649,0.27645596,629.86,629.02,0.26765372]
[1742964459853,0.27645596,629.86,628.98,1.18608911]
[1742964460455,1.383,629.87,628.98,1.18608911]
[1742964460648,0.27645157,629.85,628.98,1.18608911]
[1742964461556,0.27645157,629.85,628.9,1.18608911]
[1742964463358,1.383,629.87,628.9,1.18608911]
[1742964464652,0.27646035,629.86,628.9,1.18608911]
[1742964466359,1.383,629.87,628.9,1.18608911]
[1742964467258,1.383,629.87,628.91,1.18608911]
[1742964467658,0.27646035,629.86,628.91,1.18608911]
[1742964469356,1.383,629.87,628.91,1.18608911]
[1742964469759,0.471,629.86,629.02,0.26763055]
[1742964470660,0.27644828,629.85,629.02,0.26763055]
[1742964472356,0.471,629.86,629.02,0.26763055]
[1742964472762,0.471,629.86,629.12,1.18608911]
[1742964473661,1.5584362,629.85,629.13,0.26763084]
[1742964475468,1.5584362,629.85,629.13,1.18608911]
[1742964478368,1.282,629.85,629.13,1.18608911]
[1742964479777,0.2764373,629.84,629.13,1.18608911]
[1742964480769,0.2764373,629.84,629.02,1.18608911]
[1742964481374,1.282,629.85,629.02,1.18608911]
[1742964482681,0.27644937,629.84,629.02,1.18608911]
[1742964483574,0.27644937,629.84,629.05,1.18608911]
[1742964484273,1.282,629.85,629.05,1.18608911]
[1742964485581,0.27644608,629.84,629.05,1.18608911]
[1742964486081,0.27644608,629.84,629.07,1.18608911]
[1742964487384,1.282,629.85,629.07,1.18608911]
[1742964487575,0.74644388,629.83,629.07,1.18608911]
[1742964488683,1.84544388,629.83,629.16,1.18608911]
[1742964490282,1.569,629.83,629.16,1.18608911]
[1742964490684,0.27643839,629.82,629.16,1.18608911]
[1742964490879,0.27643839,629.82,629.19,1.18608911]
[1742964493384,1.569,629.83,629.19,1.18608911]
[1742964493579,0.2764351,629.81,629.19,1.18608911]
[1742964496587,0.2764351,629.81,629.2,1.18608911]
[1742964499087,0.2764351,629.81,629.11,1.18608911]
[1742964499487,1.569,629.83,629.11,1.18608911]
[1742964500686,0.27645047,629.82,629.11,1.18608911]
[1742964500887,0.27645047,629.82,629.09,1.18608911]
[1742964502488,0.47,629.83,629.09,1.18608911]
[1742964503288,0.47,629.83,629.12,1.18608911]
[1742964503687,0.27645047,629.82,629.12,1.18608911]
[1742964504988,0.27645047,629.82,629.11,1.18608911]
[1742964505388,0.47,629.83,629.11,1.18608911]
[1742964505884,1.412,629.83,629.11,1.18608911]
[1742964506684,0.27645047,629.82,629.11,1.18608911]
[1742964506889,0.27645047,629.82,628.84,0.27645047]
[1742964506890,0.27645047,629.82,629.12,1.18608911]
[1742964508495,2.73,629.83,629.12,1.18608911]
[1742964509701,0.27644937,629.82,629.12,1.18608911]
[1742964509900,0.27644937,629.82,629.16,1.18608911]
[1742964511403,2.73,629.83,629.16,1.18608911]
[1742964512806,0.27645157,629.82,629.16,1.18608911]
[1742964514402,2.73,629.83,629.16,1.18608911]
[1742964514602,2.26,629.83,629.16,1.18608911]
[1742964515805,0.27645157,629.82,629.16,1.18608911]
[1742964517404,2.26,629.83,629.16,1.18608911]
[1742964517603,0.47,629.82,628.96,1.18608911]
[1742964518605,0.27649111,629.81,628.96,1.18608911]
[1742964520410,0.47,629.82,628.96,1.18608911]
[1742964521204,0.47,629.82,628.87,1.18608911]
[1742964521609,0.59405048,629.81,628.87,1.18608911]
[1742964523405,0.31755608,629.81,628.87,1.18608911]
[1742964524706,0.27650868,629.8,628.87,1.18608911]
[1742964525514,0.945,629.79,628.87,1.18608911]
[1742964526813,0.31757121,629.78,628.87,1.18608911]
[1742964527008,0.31757121,629.78,628.95,1.18608911]
[1742964529115,1.096,629.77,628.95,1.18608911]
[1742964529515,1.096,629.77,628.8,1.18608911]
[1742964529910,1.41357625,629.77,628.8,1.18608911]
[1742964530815,0.27653065,629.76,628.8,1.18608911]
[1742964532515,1.41357625,629.77,628.8,1.18608911]
[1742964532912,1.41357625,629.77,628.79,1.18608911]
[1742964533412,0.47,629.76,628.79,1.18608911]
[1742964533609,0.74653175,629.76,628.79,1.18608911]
[1742964534616,1.06411305,629.76,628.79,1.18608911]
[1742964535412,0.7875813,629.76,628.79,1.18608911]
[1742964535619,0.7875813,629.76,628.78,1.18608911]
[1742964536319,0.7875813,629.76,628.79,0.26839324]
[1742964536718,0.27653615,629.75,628.79,0.26839324]
[1742964537420,0.27653615,629.75,628.78,1.18608911]
[1742964537619,0.27653615,629.75,628.79,0.26840019]
[1742964538215,0.27653615,629.75,628.9,1.18608911]
[1742964538517,0.7875813,629.76,628.91,0.26840019]
[1742964538821,0.7875813,629.76,628.9,1.18608911]
[1742964539215,0.31758634,629.75,628.9,1.18608911]
[1742964539615,0.27653175,629.74,628.9,1.18608911]
[1742964539814,0.31759643,629.73,628.9,1.18608911]
[1742964542718,1.40155153,629.72,628.9,1.18608911]
[1742964542923,0.31760651,629.71,628.9,1.18608911]
[1742964543117,0.31760651,629.71,628.57,1.18608911]
[1742964544724,0.31760651,629.71,628.58,1.18608911]
[1742964545619,0.27659109,629.7,628.58,1.18608911]
[1742964545822,0.3176166,629.69,628.58,1.18608911]
[1742964546426,0.3176166,629.69,628.59,0.2685535]
[1742964547023,0.3176166,629.69,628.59,1.45464261]
[1742964547222,0.3176166,629.69,628.59,1.18608911]
[1742964547523,0.3176166,629.69,628.6,0.26864433]
[1742964548624,0.27659219,629.68,628.6,0.26864433]
[1742964548816,0.31762669,629.67,628.6,0.26864433]
[1742964549724,0.31762669,629.67,628.69,1.18608911]
[1742964550520,0.31762669,629.67,628.7,0.26863832]
[1742964551628,0.31762669,629.67,624.31,4.48735547]
[1742964551629,0.2765834,629.66,628.67,1.18608911]
[1742964551822,0.31763678,629.65,628.71,0.2686413]
[1742964552029,0.31763678,629.65,628.67,1.18608911]
[1742964552229,0.31763678,629.65,628.68,0.26864554]
[1742964552527,0.31763678,629.65,628.67,1.18608911]
[1742964553834,0.31763678,629.65,628.65,1.18608911]
[1742964554031,0.31763678,629.65,628.66,0.26863093]
[1742964556038,0.31763678,629.65,628.64,1.18608911]
[1742964556237,0.31763678,629.65,628.65,0.26861162]
[1742964557934,0.31763678,629.65,628.68,1.18608911]
[1742964558137,0.31763678,629.65,628.69,0.26861162]
[1742964558639,0.31763678,629.65,628.68,1.18608911]
[1742964559635,1.179,629.64,628.67,1.18608911]
[1742964559940,0.31764687,629.63,628.68,0.26862309]
[1742964560134,0.47,629.62,628.68,0.26862309]
[1742964560738,0.27659109,629.61,628.68,0.26862309]
[1742964561038,0.27659109,629.61,628.67,1.18608911]
[1742964562140,0.27659109,629.61,628.68,0.26861981]
[1742964562334,0.822,629.6,628.68,0.26861981]
[1742964562738,1.09859219,629.6,628.68,0.26861981]
[1742964564541,1.09859219,629.6,628.69,0.26856668]
[1742964564737,1.09859219,629.6,628.68,0.26856668]
[1742964564937,1.09859219,629.6,628.69,0.26856668]
[1742964565140,1.09859219,629.6,628.72,1.18608911]
[1742964565340,1.09859219,629.6,628.73,0.26856668]
[1742964567437,1.09859219,629.6,628.78,1.18608911]
[1742964567639,1.09859219,629.6,628.79,0.26856668]
[1742964568343,0.822,629.6,628.79,0.26856668]
[1742964569138,0.2765823,629.59,628.79,0.26856668]
[1742964569938,0.2765823,629.59,628.78,1.18608911]
[1742964570143,0.2765823,629.59,628.79,0.26860886]
[1742964571043,0.2765823,629.59,628.88,1.18608911]
[1742964571443,0.822,629.6,628.88,1.18608911]
[1742964571837,0.27657571,629.58,628.88,1.18608911]
[1742964573337,0.27657571,629.58,628.87,1.18608911]
[1742964574440,0.983,629.58,628.87,1.18608911]
[1742964574840,0.276579,629.57,628.87,1.18608911]
[1742964575244,0.276579,629.57,628.83,1.18608911]
[1742964577343,0.983,629.58,628.83,1.18608911]
[1742964577751,0.983,629.58,621.24,9.47687338]
[1742964577752,0.983,629.58,628.78,1.18608911]
[1742964577945,0.2765834,629.57,628.78,1.18608911]
[1742964579853,0.2765834,629.57,628.8,1.18608911]
[1742964580451,0.983,629.58,628.8,1.18608911]
[1742964580848,0.2765867,629.56,628.8,1.18608911]
[1742964583054,0.2765867,629.56,628.81,1.18608911]
[1742964583451,0.983,629.58,628.81,1.18608911]
[1742964584854,0.2765856,629.57,628.81,1.18608911]
[1742964585660,0.2765856,629.57,628.92,1.18608911]
[1742964586452,0.983,629.58,628.92,1.18608911]
[1742964587657,0.27657351,629.57,628.92,1.18608911]
[1742964589064,0.27657351,629.57,628.87,1.18608911]
[1742964589661,0.983,629.58,628.87,1.18608911]
[1742964590663,0.276579,629.57,628.87,1.18608911]
[1742964591960,0.276579,629.57,628.5,0.276579]
[1742964591961,0.276579,629.57,628.84,1.18608911]
[1742964592859,0.746579,629.57,628.84,1.18608911]
[1742964594565,0.746579,629.57,628.83,1.18608911]
[1742964595458,0.47,629.57,628.83,1.18608911]
[1742964596365,0.47,629.57,628.8,1.18608911]
[1742964596764,0.2765834,629.56,628.8,1.18608911]
[1742964599067,1.118,629.55,628.8,1.18608911]
[1742964601972,1.118,629.55,628.86,1.18608911]
[1742964606275,1.118,629.55,628.88,1.18608911]
[1742964609480,1.118,629.55,628.8,1.18608911]
[1742964611679,0.27659659,629.54,628.8,1.18608911]
[1742964612875,0.27659659,629.54,628.79,1.18608911]
[1742964613488,1.118,629.55,628.79,1.18608911]
[1742964614790,0.27659769,629.54,628.79,1.18608911]
[1742964615089,0.469,629.53,628.79,1.18608911]
[1742964615484,0.469,629.53,628.59,1.18608911]
[1742964617092,0.469,629.53,628.6,1.18608911]
[1742964617696,0.27661528,629.52,628.6,1.18608911]
[1742964619396,0.469,629.53,628.6,1.18608911]
[1742964620097,1.024,629.52,628.61,1.18608911]
[1742964620694,0.27661418,629.51,628.61,1.18608911]
[1742964622197,0.27661418,629.51,628.62,0.26882129]
[1742964622391,1.024,629.52,628.62,0.26882129]
[1742964622596,1.024,629.52,628.63,1.18608911]
[1742964622797,0.27661418,629.5,628.64,0.26882129]
[1742964623495,0.27661418,629.5,628.65,0.26882787]
[1742964623699,0.27661418,629.5,628.64,0.26882787]
[1742964623895,0.27661418,629.5,628.65,0.26882787]
[1742964624102,0.27661418,629.5,628.63,1.18608911]
[1742964624103,0.27661418,629.5,628.64,0.26882787]
[1742964624298,0.27661418,629.5,628.65,0.26882787]
[1742964624494,0.27661418,629.5,628.64,0.26882787]
[1742964624695,0.27661418,629.5,628.85,1.18608911]
[1742964624899,0.835,629.49,628.85,1.18608911]
[1742964626499,0.835,629.49,628.86,1.18608911]
[1742964626700,0.27659109,629.48,628.86,1.18608911]
[1742964628506,0.27659109,629.48,628.89,1.18608911]
[1742964631410,0.835,629.49,628.89,1.18608911]
[1742964631802,0.2765867,629.47,628.89,1.18608911]
[1742964632706,0.2765867,629.47,628.49,0.98392868]
[1742964632707,0.2765867,629.47,628.84,1.18608911]
[1742964634409,0.835,629.49,628.84,1.18608911]
[1742964635007,0.835,629.49,628.85,1.18608911]
[1742964635211,0.2765856,629.48,628.85,1.18608911]
[1742964635613,0.469,629.47,628.85,1.18608911]
[1742964636413,0.469,629.47,628.83,1.18608911]
[1742964638015,0.2765867,629.46,628.83,1.18608911]
[1742964640420,0.469,629.47,628.83,1.18608911]
[1742964640734,0.2765889,629.45,628.83,1.18608911]
[1742964641721,0.2765889,629.45,628.84,1.18608911]
[1742964643618,0.469,629.47,628.84,1.18608911]
[1742964643818,0.27660099,629.44,628.84,1.18608911]
[1742964645023,0.27660099,629.44,628.66,1.18608911]
[1742964645824,1.29160099,629.44,628.66,1.18608911]
[1742964646426,1.015,629.44,628.66,1.18608911]
[1742964646728,0.27662407,629.43,628.66,1.18608911]
[1742964647227,0.27662407,629.43,628.67,1.18608911]
[1742964649528,0.919,629.42,628.67,1.18608911]
[1742964649827,1.19562297,629.42,628.67,1.18608911]
[1742964650027,1.19562297,629.42,628.68,1.18608911]
[1742964652526,0.919,629.42,628.69,0.26888673]
[1742964653031,0.27662407,629.41,628.69,0.26888673]
[1742964655228,0.27662407,629.41,628.68,1.18608911]
[1742964655433,0.919,629.42,628.69,0.26889044]
[1742964655833,0.919,629.42,628.83,1.18608911]
[1742964656033,0.27662407,629.41,628.83,1.18608911]
[1742964658447,0.919,629.42,628.83,1.18608911]
[1742964658947,0.27660758,629.41,628.83,1.18608911]
[1742964660847,0.27660758,629.41,628.88,1.18608911]
[1742964661443,0.919,629.42,628.88,1.18608911]
[1742964662044,0.27660209,629.41,628.88,1.18608911]
[1742964664448,0.919,629.42,628.88,1.18608911]
[1742964664851,0.27660209,629.4,628.88,1.18608911]
[1742964666845,0.27660209,629.4,628.89,1.18608911]
[1742964667352,0.469,629.39,628.89,1.18608911]
[1742964669952,0.895,629.38,628.88,1.18608911]
[1742964671948,1.17159989,629.38,628.88,1.18608911]
[1742964672355,1.17159989,629.38,628.87,1.18608911]
[1742964672857,1.192,629.37,628.87,1.18608911]
[1742964675258,1.192,629.37,628.88,1.18608911]
[1742964679358,1.192,629.37,628.9,1.18608911]
[1742964683655,1.192,629.37,628.86,1.18608911]
[1742964685761,1.192,629.37,628.55,1.18460024]
[1742964685762,1.192,629.37,628.79,1.18608911]
[1742964687759,1.192,629.37,628.78,1.18608911]
[1742964688058,0.469,629.36,628.78,1.18608911]
[1742964689455,1.022,629.35,628.78,1.18608911]
[1742964690461,1.022,629.35,628.77,1.18608911]
[1742964693457,1.022,629.35,628.8,1.18608911]
[1742964696164,1.022,629.35,628.5,0.27660428]
[1742964697562,1.022,629.35,628.42,1.18608911]
[1742964697864,1.022,629.35,628.43,0.31825342]
[1742964698864,1.022,629.35,628.44,0.27663397]
[1742964699061,1.022,629.35,628.45,0.31824329]
[1742964700464,1.022,629.35,628.55,1.18608911]
[1742964702960,1.022,629.35,628.48,0.27661968]
[1742964702961,1.022,629.35,628.56,1.18608911]
[1742964705067,1.022,629.35,628.57,0.26890886]
[1742964705267,1.022,629.35,628.53,1.18608911]
[1742964705470,1.197,629.34,628.54,0.26889942]
[1742964707164,1.197,629.34,628.53,1.18608911]
[1742964707364,1.197,629.34,628.54,0.26880892]
[1742964707565,1.197,629.34,628.88,1.18608911]
[1742964710367,1.197,629.34,628.84,1.18608911]
[1742964710567,1.197,629.34,628.85,0.26879906]
[1742964711071,1.197,629.34,628.84,1.18608911]
[1742964711271,1.197,629.34,628.85,0.26880126]
[1742964713070,1.197,629.34,628.86,0.26882409]
[1742964713271,1.197,629.34,628.84,0.26882409]
[1742964714170,1.146,629.33,628.84,0.26882409]
[1742964714974,1.146,629.33,628.85,0.26882419]
[1742964715174,1.146,629.33,628.84,0.26882419]
[1742964715372,1.146,629.33,628.85,0.26882419]
[1742964715572,1.146,629.33,628.84,0.26882419]
[1742964715877,1.146,629.33,628.85,0.26882419]
[1742964716077,1.146,629.33,621.71,5.69327393]
[1742964716078,1.146,629.33,628.86,0.26882419]
[1742964716377,1.146,629.33,628.87,0.26882419]
[1742964716577,1.146,629.33,628.88,0.26882419]
[1742964716876,1.146,629.33,628.89,0.26882419]
[1742964717078,1.146,629.33,628.82,0.26882419]
[1742964717275,1.146,629.33,628.81,1.18608911]
[1742964717472,1.146,629.33,628.82,0.26882833]
[1742964718077,1.614,629.33,628.82,0.26882833]
[1742964718679,1.614,629.33,628.83,0.26882748]
[1742964718979,1.614,629.33,628.84,0.26882748]
[1742964720377,1.614,629.33,628.83,1.18608911]
[1742964720576,1.614,629.33,628.84,1.18608911]
[1742964723081,1.614,629.33,628.85,0.268771]
[1742964723280,1.614,629.33,628.81,0.268771]
[1742964723482,1.614,629.33,628.8,1.18608911]
[1742964723981,1.614,629.33,628.81,0.26876936]
[1742964725082,1.614,629.33,628.84,1.18608911]
[1742964725475,1.614,629.33,628.85,0.26876936]
[1742964726579,1.614,629.33,628.84,1.18608911]
[1742964727482,2.681,629.33,628.84,1.18608911]
[1742964727683,2.681,629.33,628.85,0.26877202]
[1742964728183,2.681,629.33,628.86,0.26875686]
[1742964728479,2.681,629.33,628.87,0.26874936]
[1742964728684,2.681,629.33,628.84,1.18608911]
[1742964728881,2.681,629.33,628.85,0.26873932]
[1742964729584,2.681,629.33,628.86,0.26874111]
[1742964729779,2.681,629.33,628.85,0.26874111]
[1742964731682,2.681,629.33,628.86,0.26874502]
[1742964731880,2.681,629.33,628.85,0.26874502]
[1742964732079,2.681,629.33,628.87,1.18608911]
[1742964732281,2.681,629.33,628.88,0.26874502]
[1742964733385,2.681,629.33,628.87,1.18608911]
[1742964733585,2.681,629.33,628.88,0.26873872]
[1742964733982,2.681,629.33,628.96,1.18608911]
[1742964734986,2.681,629.33,628.97,0.26873896]
[1742964736685,2.681,629.33,629.03,1.18608911]
[1742964737079,2.213,629.33,629.03,1.18608911]
[1742964739184,1.067,629.33,629.03,1.18608911]
[1742964739788,1.067,629.33,629.04,1.18608911]
[1742964743285,1.067,629.33,628.85,1.18608911]
[1742964746194,1.067,629.33,628.69,1.18608911]
[1742964747497,1.067,629.33,628.7,0.26892015]
[1742964748495,1.067,629.33,628.71,0.26892114]
[1742964748702,1.067,629.33,628.7,0.26892114]
[1742964748905,1.067,629.33,628.89,1.18608911]
[1742964751599,1.067,629.33,628.87,1.18608911]
[1742964751806,1.067,629.33,628.88,0.26891771]
[1742964753109,1.067,629.33,628.87,1.18608911]
[1742964753911,1.067,629.33,628.76,1.18608911]
[1742964758219,1.067,629.33,628.73,1.18608911]
[1742964759719,2.269,629.33,628.73,1.18608911]
[1742964760017,2.269,629.33,628.54,0.27661308]
[1742964760524,2.269,629.33,628.46,1.18608911]
[1742964761712,2.269,629.33,628.47,0.27664277]
[1742964764314,2.269,629.33,628.48,0.26899473]
[1742964766317,2.269,629.33,628.76,1.18608911]
[1742964766514,2.269,629.33,628.77,0.26899473]